bitfinex/quotes_ETHUSD_20250425
["timestamp","ask_amount","ask_price","bid_price","bid_amount"]
[1745606034512,0.7749,1799.5,1799.1,0.58495149]
[1745606034714,0.7749,1799.5,1799.3,0.58495149]
[1745606035591,0.7749,1799.5,1799.3,4.903]
[1745606035896,6.33218366,1799.5,1799.3,4.903]
[1745606036092,0.63321837,1799.4,1799.2,4.903]
[1745606036380,0.7749,1799.5,1799.2,0.58495149]
[1745606036542,0.7749,1799.5,1799.2,5.48795149]
[1745606037957,0.7749,1799.5,1799.3,3.0]
[1745606040095,0.7749,1799.5,1799.2,5.48795149]
[1745606040295,6.33204943,1799.5,1799.2,5.48795149]
[1745606040488,1.96379965,1799.5,1799.2,5.48795149]
[1745606042303,7.5209097,1799.5,1799.2,5.48795149]
[1745606042531,7.5209097,1799.5,1799.2,4.903]
[1745606043609,7.5209097,1799.5,1799.1,3.0]
[1745606043610,5.55759535,1799.4,1798.8,1.80474374]
[1745606043822,5.55821882,1799.2,1798.8,4.903]
[1745606044318,6.91623559,1799.3,1798.8,4.903]
[1745606044523,6.91623559,1799.3,1798.8,5.48795149]
[1745606045033,1.35835953,1799.3,1798.8,5.48795149]
[1745606045175,0.8026,1799.3,1798.9,3.0]
[1745606045892,7.54871563,1799.5,1799.0,0.58495149]
[1745606046222,1.99149965,1799.5,1799.0,0.58495149]
[1745606046420,1.99149965,1799.5,1799.1,0.8115]
[1745606046586,1.99149965,1799.5,1799.2,4.903]
[1745606046787,7.54874424,1799.5,1799.2,4.903]
[1745606046990,6.31236839,1799.4,1799.2,4.903]
[1745606047519,0.75487442,1799.4,1799.2,4.903]
[1745606048680,0.75487442,1799.4,1799.1,4.903]
[1745606048881,0.75487442,1799.4,1799.0,0.58495149]
[1745606049130,6.35971311,1799.5,1799.1,4.903]
[1745606050712,5.55741766,1799.4,1799.1,4.903]
[1745606051014,6.35971311,1799.5,1799.1,4.903]
[1745606052013,0.8026,1799.5,1799.1,4.903]
[1745606052310,0.8026,1799.5,1799.2,3.7569]
[1745606053848,0.8026,1799.5,1799.2,3.0]
[1745606054353,0.7635,1799.7,1799.2,3.58495149]
[1745606054554,0.7635,1799.7,1799.3,0.8301]
[1745606055151,0.7635,1799.8,1799.4,0.58495149]
[1745606056752,6.31977675,1799.8,1799.4,0.58495149]
[1745606056946,0.7635,1799.5,1799.2,3.0]
[1745606057316,0.7635,1799.5,1799.2,7.903]
[1745606057837,0.8119,1799.6,1799.2,3.0]
[1745606058039,1.44875693,1799.6,1799.2,7.903]
[1745606058232,7.00578227,1799.6,1799.2,7.903]
[1745606058421,1.44875693,1799.6,1799.2,7.903]
[1745606058958,7.00564211,1799.6,1799.3,3.0]
[1745606059118,12.56269668,1799.6,1799.3,3.0]
[1745606059463,6.81357029,1799.5,1799.2,4.903]
[1745606060939,1.25626967,1799.5,1799.2,4.903]
[1745606061141,6.81337054,1799.5,1799.2,4.903]
[1745606061556,1.25626967,1799.5,1799.2,4.903]
[1745606062368,6.36871296,1799.6,1799.2,4.903]
[1745606062832,5.55715843,1799.5,1799.2,4.903]
[1745606063233,6.36871296,1799.6,1799.2,4.903]
[1745606063855,5.55724811,1799.5,1799.2,4.903]
[1745606064167,6.36871296,1799.6,1799.2,4.903]
[1745606064367,7.56124568,1799.6,1799.2,4.903]
[1745606064565,5.55710838,1799.5,1799.2,4.903]
[1745606064735,7.56124568,1799.6,1799.2,4.903]
[1745606065777,0.8176,1799.7,1799.2,4.903]
[1745606065938,18.49467252,1799.9,1799.3,0.7952]
[1745606066272,12.38467252,1799.9,1799.3,0.7952]
[1745606066438,1.2724936,1799.9,1799.4,0.58495149]
[1745606066643,1.2724936,1799.9,1799.3,0.7952]
[1745606066644,6.82862088,1799.9,1799.3,0.7952]
[1745606067077,6.82859803,1799.9,1799.3,0.7952]
[1745606067569,6.82859803,1799.9,1799.5,0.774]
[1745606067570,1.2724936,1799.9,1799.5,0.774]
[1745606067739,0.4548936,1799.9,1799.5,0.774]
[1745606069197,6.01078992,1799.9,1799.5,0.774]
[1745606069781,5.55630644,1799.8,1799.3,3.7544]
[1745606069972,5.55663001,1799.7,1799.3,3.7544]
[1745606070173,5.55695024,1799.6,1799.3,4.899]
[1745606070684,5.55695024,1799.6,1799.2,4.899]
[1745606070685,6.33282395,1799.5,1799.2,4.899]
[1745606070883,7.52179124,1799.5,1799.1,5.6534]
[1745606071081,6.33282395,1799.5,1799.1,5.6534]
[1745606071894,0.7756,1799.5,1799.1,5.6534]
[1745606072095,6.33272686,1799.5,1799.1,5.6534]
[1745606072756,0.7756,1799.5,1799.1,5.6534]
[1745606072960,11.89007679,1799.5,1799.1,5.6534]
[1745606073161,0.7756,1799.5,1799.1,5.6534]
[1745606073563,6.33178523,1799.7,1799.1,5.6534]
[1745606073995,5.55802578,1799.2,1799.1,4.899]
[1745606074181,5.55802578,1799.2,1798.7,0.7513]
[1745606074182,0.8194,1799.2,1798.7,0.7513]
[1745606074378,0.8194,1799.2,1798.6,4.899]
[1745606074592,5.55896007,1798.9,1798.6,4.899]
[1745606074782,5.55890259,1799.0,1798.6,4.899]
[1745606075146,5.55951196,1798.8,1798.6,4.899]
[1745606075404,5.45951196,1798.8,1798.4,4.899]
[1745606075706,6.37851895,1798.9,1798.4,4.899]
[1745606076068,5.55980531,1798.7,1798.4,4.899]
[1745606076266,0.8194,1798.9,1798.4,4.899]
[1745606076577,6.3783902,1798.9,1798.4,4.899]
[1745606076974,5.55926291,1798.8,1798.4,4.899]
[1745606077179,5.55958052,1798.7,1798.4,4.899]
[1745606077789,5.55969904,1798.7,1798.3,0.7513]
[1745606077975,5.56021579,1798.5,1798.3,4.9]
[1745606078179,5.56033089,1798.5,1798.3,4.9]
[1745606078490,5.56024116,1798.5,1798.3,4.9]
[1745606078671,5.56024116,1798.5,1798.1,1.44041174]
[1745606078876,5.56064827,1798.4,1798.1,5.6833]
[1745606079191,0.8136,1798.3,1798.1,4.9]
[1745606079391,7.48630294,1798.4,1798.1,4.9]
[1745606079593,5.56111667,1798.2,1798.1,4.9]
[1745606080111,5.56144212,1798.1,1797.8,5.7717]
[1745606080320,5.56190642,1798.0,1797.8,9.901]
[1745606080530,5.56196009,1798.0,1797.6,1.47661174]
[1745606080682,5.56196009,1798.0,1797.7,4.901]
[1745606081192,5.56187454,1798.0,1797.7,4.901]
[1745606081587,5.56235398,1797.8,1797.7,4.901]
[1745606081783,6.35188081,1797.9,1797.6,4.901]
[1745606082109,11.91416857,1797.9,1797.6,4.901]
[1745606082279,5.56256932,1797.8,1797.6,4.901]
[1745606082685,6.35204516,1797.9,1797.6,4.901]
[1745606083008,5.5624956,1797.8,1797.6,4.901]
[1745606083983,5.5626634,1797.7,1797.6,4.901]
[1745606084191,5.56326188,1797.6,1797.3,17.4254]
[1745606084390,6.67532685,1797.7,1797.3,21.572]
[1745606084605,6.31954187,1797.8,1797.3,22.22911174]
[1745606084806,5.56211292,1797.9,1797.4,0.7554]
[1745606085623,5.56236811,1797.8,1797.4,0.7554]
[1745606086113,5.56275512,1797.7,1797.4,0.7554]
[1745606086505,5.56261953,1797.8,1797.4,0.7554]
[1745606086719,5.56260002,1797.8,1797.4,0.7554]
[1745606086890,11.12524414,1797.8,1797.4,0.7554]
[1745606087094,5.5626963,1797.7,1797.4,0.7554]
[1745606087494,5.56248484,1797.8,1797.4,0.7554]
[1745606087729,5.56281286,1797.7,1797.4,0.7554]
[1745606087935,1.18186253,1797.8,1797.4,0.7554]
[1745606088235,5.56268147,1797.7,1797.4,0.7554]
[1745606088612,6.74441852,1797.8,1797.4,0.7554]
[1745606088855,5.56255599,1797.8,1797.4,0.7554]
[1745606089261,5.56220748,1797.9,1797.4,0.7554]
[1745606089411,11.12450825,1797.9,1797.4,0.7554]
[1745606089613,11.12450825,1797.9,1797.1,3.05]
[1745606089614,5.56421099,1797.2,1797.1,0.05]
[1745606089849,7.44923567,1797.2,1797.1,0.05]
[1745606091141,9.35829257,1797.6,1797.1,0.8163]
[1745606091360,5.56329763,1797.5,1797.1,0.8163]
[1745606092041,5.56329763,1797.5,1797.1,5.7193]
[1745606092220,5.56329763,1797.5,1797.1,0.8163]
[1745606092420,5.56374778,1797.4,1797.1,5.7203]
[1745606093360,5.56421099,1797.2,1797.1,0.05]
[1745606094054,6.36924745,1797.3,1797.1,0.05]
[1745606094414,11.93341228,1797.3,1797.1,0.05]
[1745606094646,13.12675351,1797.3,1797.1,0.05]
[1745606094827,5.56421099,1797.2,1797.1,0.05]
[1745606095963,7.56244908,1797.3,1797.1,0.05]
[1745606096255,5.56421099,1797.2,1797.1,0.05]
[1745606097051,7.56244908,1797.3,1797.1,0.05]
[1745606097617,5.56421099,1797.2,1797.1,0.05]
[1745606098151,7.56244908,1797.3,1797.1,0.05]
[1745606098650,1.76666045,1797.5,1797.1,0.05]
[1745606098835,0.7893,1797.5,1797.1,0.70711174]
[1745606099021,3.0,1797.5,1797.1,0.70711174]
[1745606099230,0.7893,1797.7,1797.2,4.902]
[1745606099552,3.0,1797.6,1797.3,0.785]
[1745606099715,6.31611321,1797.9,1797.3,1.44211174]
[1745606099911,3.0,1797.7,1797.3,1.44211174]
[1745606100251,6.31612451,1797.9,1797.3,1.44211174]
[1745606100461,5.56269009,1797.7,1797.3,1.44211174]
[1745606100624,6.39009009,1797.7,1797.2,5.6755]
[1745606100830,8.56250499,1797.8,1797.2,5.6755]
[1745606101148,14.12514247,1797.8,1797.2,5.6755]
[1745606101355,5.56269554,1797.7,1797.2,5.6755]
[1745606101957,8.98931458,1797.8,1797.2,5.6755]
[1745606102318,3.42680959,1797.8,1797.2,5.6755]
[1745606102851,8.98926931,1797.8,1797.2,5.6755]
[1745606103012,3.0,1797.7,1797.2,5.6755]
[1745606103218,3.8194,1797.6,1797.2,5.6755]
[1745606103419,5.56364622,1797.4,1797.2,4.902]
[1745606104252,5.56342158,1797.5,1797.2,4.902]
[1745606104420,11.94578865,1797.6,1797.2,4.902]
[1745606104622,5.56330075,1797.5,1797.2,4.902]
[1745606104956,5.56375934,1797.4,1797.2,4.902]
[1745606105141,6.76451545,1797.6,1797.2,4.902]
[1745606105337,5.56345094,1797.5,1797.1,0.05]
[1745606105528,6.23993003,1797.5,1797.1,0.05]
[1745606105722,0.67647909,1797.5,1797.1,0.05]
[1745606105941,3.67647909,1797.5,1797.1,0.05]
[1745606106140,3.0,1797.5,1797.1,0.05]
[1745606106353,3.0,1797.7,1797.2,1.45731174]
[1745606106857,3.0,1797.6,1797.2,1.45731174]
[1745606107056,9.77837443,1797.8,1797.2,1.45731174]
[1745606107555,6.77837443,1797.8,1797.2,1.45731174]
[1745606107849,3.0,1797.7,1797.2,1.45731174]
[1745606109054,1.35875687,1798.0,1797.4,0.65711174]
[1745606109254,1.35875687,1798.0,1797.6,0.65711174]
[1745606109255,0.55615687,1798.0,1797.6,0.65711174]
[1745606109456,3.55615687,1798.0,1797.6,0.65711174]
[1745606109623,0.55615687,1798.0,1797.6,0.65711174]
[1745606109824,3.0,1798.1,1797.6,0.65711174]
[1745606110132,3.0,1798.1,1797.7,0.7582]
[1745606110362,8.56145785,1798.1,1797.7,0.7582]
[1745606110559,3.0,1798.1,1797.7,0.7582]
[1745606111846,5.98063707,1798.2,1797.7,0.7582]
[1745606112050,0.8026,1797.7,1797.0,0.7582]
[1745606112289,5.56362625,1797.4,1797.0,0.7582]
[1745606112589,6.3652754,1797.7,1797.0,0.7582]
[1745606112590,5.56342934,1797.5,1797.0,0.7582]
[1745606112751,11.12694661,1797.5,1797.0,0.7582]
[1745606112948,3.0,1797.5,1797.0,0.7582]
[1745606113689,3.0,1797.5,1797.2,0.7879]
[1745606114474,2.99106819,1797.5,1797.2,0.7879]
[1745606114691,8.5543606,1797.5,1797.2,0.7879]
[1745606115386,2.99106819,1797.5,1797.2,0.7879]
[1745606116393,6.78215498,1797.7,1797.2,0.7879]
[1745606116394,0.8026,1797.7,1797.2,0.7879]
[1745606116601,5.56189235,1798.0,1797.2,3.24856969]
[1745606116910,5.56225903,1797.9,1797.3,0.8016]
[1745606117055,3.0,1797.7,1797.3,0.8016]
[1745606117577,3.0,1797.9,1797.3,0.8016]
[1745606118984,6.37138389,1798.3,1797.5,0.8136]
[1745606119162,5.56113826,1798.2,1797.5,0.8136]
[1745606119361,6.75439048,1798.2,1797.5,0.8136]
[1745606119574,3.0,1798.0,1797.5,0.8136]
[1745606119810,3.0,1798.0,1797.1,0.05]
[1745606119811,5.56383626,1797.4,1797.1,0.05]
[1745606119956,0.7763,1797.5,1797.1,0.05]
[1745606120294,5.56375886,1797.4,1797.1,0.05]
[1745606120594,3.0,1797.4,1797.1,0.05]
[1745606120891,1.15393,1797.5,1797.1,0.05]
[1745606121098,3.0,1797.4,1797.1,0.05]
[1745606121460,5.56372451,1797.4,1797.1,0.05]
[1745606121798,6.79183931,1797.4,1797.1,0.05]
[1745606122188,1.2281148,1797.4,1797.1,0.05]
[1745606123097,4.15393,1797.5,1797.1,0.05]
[1745606123400,8.94102625,1797.5,1797.1,0.05]
[1745606124262,5.56363106,1797.4,1797.1,0.05]
[1745606124458,8.94102625,1797.5,1797.1,0.05]
[1745606125780,5.56359941,1797.4,1797.1,0.05]
[1745606126122,5.56421099,1797.2,1797.1,0.05]
[1745606126330,5.5639014,1797.3,1797.1,0.05]
[1745606126819,8.19930799,1797.4,1797.1,0.05]
[1745606127019,7.77206323,1797.4,1797.1,0.05]
[1745606127502,5.56400547,1797.3,1797.1,0.05]
[1745606128204,7.77189976,1797.4,1797.1,0.05]
[1745606128583,5.5639716,1797.3,1797.1,0.05]
[1745606128786,7.77203117,1797.4,1797.1,0.05]
[1745606129088,2.20826257,1797.4,1797.1,0.05]
[1745606129500,1.45046257,1797.4,1797.1,0.05]
[1745606129817,5.56382,1797.4,1797.1,0.05]
[1745606130221,8.94107754,1797.5,1797.1,0.05]
[1745606130431,5.56312009,1797.6,1797.2,0.765]
[1745606130993,5.56312009,1797.6,1797.2,0.77173838]
[1745606131192,4.48817339,1797.6,1797.2,0.77173838]
[1745606131593,5.56248529,1797.8,1797.2,0.77173838]
[1745606132016,3.0,1797.7,1797.2,0.77173838]
[1745606132339,9.31788104,1797.9,1797.2,5.67273838]
[1745606132492,1.19325222,1798.2,1797.5,3.24931545]
[1745606132852,5.56113242,1798.2,1797.6,5.666]
[1745606133170,5.56143265,1798.1,1797.6,5.666]
[1745606133329,5.56113242,1798.2,1797.6,5.666]
[1745606133935,5.56113242,1798.2,1797.7,0.765]
[1745606134138,0.7558,1798.3,1797.7,1.42260955]
[1745606134513,8.56122152,1798.2,1797.7,1.42260955]
[1745606134713,8.56111844,1798.2,1797.7,1.42260955]
[1745606135157,3.0,1798.2,1797.7,1.42260955]
[1745606135560,0.7558,1798.3,1797.7,0.765]
[1745606135759,5.56105075,1798.3,1797.7,0.765]
[1745606136052,6.11741265,1798.2,1797.7,0.765]
[1745606136232,0.55610507,1798.2,1797.7,0.765]
[1745606136832,6.11723986,1798.2,1797.7,0.765]
[1745606137166,0.55610507,1798.2,1797.7,0.765]
[1745606138568,6.11722845,1798.2,1797.7,0.765]
[1745606138738,11.67862594,1798.2,1797.7,0.765]
[1745606138939,6.11722845,1798.2,1797.7,0.765]
[1745606139142,6.17339773,1798.1,1797.7,0.765]
[1745606139829,5.56178928,1798.0,1797.7,0.765]
[1745606140161,5.55011969,1798.0,1797.7,0.765]
[1745606140414,5.56220883,1797.9,1797.7,0.765]
[1745606141264,5.56235398,1797.8,1797.6,4.901]
[1745606141657,5.56192619,1798.0,1797.6,4.901]
[1745606141903,1.17352156,1798.0,1797.6,4.901]
[1745606142059,6.17328936,1798.1,1797.6,4.901]
[1745606142259,0.61172284,1798.1,1797.6,4.901]
[1745606142468,3.0,1798.1,1797.7,0.7597]
[1745606142898,8.5614383,1798.1,1797.7,0.7597]
[1745606144921,3.0,1798.1,1797.7,0.7597]
[1745606145225,5.5613041,1798.2,1797.7,0.7597]
[1745606145519,11.12272154,1798.2,1797.7,0.7597]
[1745606145691,5.5614327,1798.1,1797.7,0.7597]
[1745606146098,11.12270522,1798.2,1797.7,0.7597]
[1745606146300,5.56144641,1798.1,1797.7,0.7597]
[1745606147199,5.56127979,1798.2,1797.7,0.7597]
[1745606147725,5.5614277,1798.1,1797.7,0.7597]
[1745606147926,5.56189346,1798.0,1797.7,0.7597]
[1745606148298,5.5614277,1798.1,1797.7,0.7597]
[1745606148503,0.7811,1798.4,1798.0,0.00874769]
[1745606148704,5.56093092,1798.3,1798.1,0.7691]
[1745606148905,5.56093092,1798.3,1798.0,0.00874769]
[1745606149606,5.56068123,1798.4,1798.0,0.00874769]
[1745606149893,5.56081028,1798.3,1798.0,0.00874769]
[1745606150088,5.56068123,1798.4,1798.0,0.00874769]
[1745606150323,11.12141489,1798.4,1798.0,0.00874769]
[1745606150506,5.56082381,1798.3,1798.0,0.00874769]
[1745606150921,11.12191719,1798.3,1798.0,0.00874769]
[1745606151292,5.56082381,1798.3,1798.0,0.00874769]
[1745606152239,5.56062278,1798.4,1798.0,0.00874769]
[1745606152601,5.5489652,1798.4,1798.0,0.00874769]
[1745606152929,8.56054905,1798.4,1798.0,0.00874769]
[1745606153106,14.12129937,1798.4,1798.0,0.00874769]
[1745606153307,5.56081965,1798.3,1798.0,0.00874769]
[1745606153497,11.12192879,1798.3,1798.0,0.00874769]
[1745606153833,5.56081965,1798.3,1798.0,0.00874769]
[1745606157735,1.41212994,1798.4,1798.0,0.00874769]
[1745606157906,5.56036543,1798.5,1798.0,0.00874769]
[1745606158110,5.5604984,1798.4,1798.0,0.00874769]
[1745606158701,11.121235,1798.4,1798.0,0.00874769]
[1745606158915,5.5604984,1798.4,1798.0,0.00874769]
[1745606159436,5.5603328,1798.5,1798.0,0.00874769]
[1745606159638,6.11658365,1798.4,1798.0,0.00874769]
[1745606159999,0.55603328,1798.4,1798.0,0.00874769]
[1745606160198,6.11667434,1798.4,1798.1,0.8264]
[1745606160431,11.67743924,1798.4,1798.1,0.8264]
[1745606160639,6.11667434,1798.4,1798.1,0.8264]
[1745606160940,6.17256581,1798.3,1798.1,0.8264]
[1745606161298,5.56115193,1798.2,1798.0,0.76514769]
[1745606161615,6.17256581,1798.3,1798.0,0.76514769]
[1745606163735,6.17256581,1798.3,1798.0,0.00874769]
[1745606163736,5.56142594,1798.1,1798.0,0.00874769]
[1745606164124,6.35602594,1798.1,1798.0,0.00874769]
[1745606164327,7.61351019,1798.1,1798.0,0.00874769]
[1745606166302,16.46351019,1798.1,1798.0,0.00874769]
[1745606166508,10.61351019,1798.1,1798.0,0.00874769]
[1745606167215,11.03811558,1798.1,1798.0,0.00874769]
[1745606169348,11.02745364,1798.1,1798.0,0.00874769]
[1745606174462,17.42745364,1798.1,1798.0,1e-08]
[1745606181237,23.53745364,1798.1,1798.0,1e-08]
[1745606184785,1.43956486,1797.8,1797.4,0.00673838]
[1745606184991,5.56328233,1797.5,1797.4,0.00673838]
[1745606185189,8.56328233,1797.5,1797.4,0.81423838]
[1745606186069,8.55726441,1797.5,1797.4,0.81423838]
[1745606186768,5.56297285,1797.6,1797.4,0.81423838]
[1745606186962,5.56328233,1797.5,1797.4,0.81423838]
[1745606190009,5.56297285,1797.6,1797.4,0.81423838]
[1745606191280,11.12620485,1797.6,1797.4,0.81423838]
[1745606191495,11.12621884,1797.6,1797.4,0.81423838]
[1745606191693,5.56328233,1797.5,1797.4,0.81423838]
[1745606192220,6.10999999,1797.7,1797.4,0.81423838]
[1745606192983,11.67267917,1797.7,1797.4,0.81423838]
[1745606193396,5.56306262,1797.6,1797.4,0.81423838]
[1745606193798,5.56328233,1797.5,1797.4,0.81423838]
[1745606194719,5.56306262,1797.6,1797.4,0.81423838]
[1745606196222,11.67284675,1797.7,1797.4,0.81423838]
[1745606196426,6.10999999,1797.7,1797.4,0.81423838]
[1745606196720,11.67277388,1797.7,1797.4,0.81423838]
[1745606197694,6.10999999,1798.2,1797.5,0.8211]
[1745606197900,6.10999999,1798.2,1797.8,0.8152]
[1745606198112,0.7504,1798.5,1797.9,0.65756486]
[1745606198113,11.67031004,1798.5,1797.9,0.65756486]
[1745606198316,5.56031005,1798.5,1798.0,0.8152]
[1745606200031,5.56108883,1798.3,1798.0,0.8152]
[1745606201426,5.56062075,1798.4,1798.0,0.8152]
[1745606201598,11.1213598,1798.4,1798.0,0.8152]
[1745606201932,5.56062075,1798.4,1798.0,0.8152]
[1745606202118,11.67062074,1798.4,1798.0,0.8152]
[1745606202739,6.10999999,1798.4,1798.0,0.8152]
[1745606204940,6.10999999,1798.4,1797.9,0.65756486]
[1745606204941,5.55940225,1798.8,1798.1,5.55356486]
[1745606205239,5.55940225,1798.8,1798.2,0.7551]
[1745606206026,5.55963587,1798.7,1798.2,0.7551]
[1745606206204,5.55997299,1798.6,1798.2,0.7551]
[1745606206412,5.55976073,1798.7,1798.2,0.7551]
[1745606208136,11.11958814,1798.7,1798.2,0.7551]
[1745606208335,5.55976073,1798.7,1798.2,0.7551]
[1745606208535,5.55997764,1798.6,1798.2,0.7551]
[1745606209103,5.55939737,1798.8,1798.2,0.7551]
[1745606209439,5.55967063,1798.7,1798.2,0.7551]
[1745606213535,5.55992686,1798.6,1798.2,0.7551]
[1745606213745,11.11947935,1798.7,1798.2,0.7551]
[1745606213940,5.55967063,1798.7,1798.2,0.7551]
[1745606214309,8.97777843,1798.9,1798.2,0.7551]
[1745606215333,14.53696657,1798.9,1798.2,0.7551]
[1745606215644,5.55935419,1798.8,1798.2,0.7551]
[1745606216628,8.5591383,1798.9,1798.2,0.7551]
[1745606216833,14.11834867,1798.9,1798.2,0.7551]
[1745606217035,16.14118354,1798.9,1798.2,0.7551]
[1745606217232,5.55931209,1798.8,1798.2,0.7551]
[1745606217745,10.58197317,1798.9,1798.2,0.7551]
[1745606218126,16.14115604,1798.9,1798.2,0.7551]
[1745606218434,10.58197317,1798.9,1798.2,0.7551]
[1745606218843,16.1411814,1798.9,1798.2,0.7551]
[1745606219145,5.5592763,1798.8,1798.2,0.7551]
[1745606221218,10.58197317,1798.9,1798.2,0.7551]
[1745606221555,16.14122144,1798.9,1798.2,0.7551]
[1745606222550,10.58197317,1798.9,1798.2,0.7551]
[1745606222752,11.6688336,1799.0,1798.4,0.7751]
[1745606222967,11.66878555,1799.0,1798.4,0.7751]
[1745606223341,5.55905772,1798.9,1798.4,0.7751]
[1745606224245,5.55934162,1798.8,1798.4,0.7751]
[1745606225138,5.55912407,1798.9,1798.4,0.7751]
[1745606225344,6.10999999,1799.0,1798.4,0.7751]
[1745606226419,11.66868967,1799.0,1798.4,0.7751]
[1745606226863,17.2275599,1799.0,1798.4,0.7751]
[1745606227050,5.55897071,1798.9,1798.4,0.7751]
[1745606227539,5.55897071,1798.9,1798.5,4.891]
[1745606227730,5.55897071,1798.9,1798.5,5.6631]
[1745606230118,5.55957838,1798.7,1798.5,5.6631]
[1745606230324,5.55915445,1798.9,1798.5,0.7721]
[1745606230741,11.11833966,1798.9,1798.5,0.7721]
[1745606231054,5.55915445,1798.9,1798.5,0.7721]
[1745606231418,8.9683851,1799.1,1798.5,0.7721]
[1745606231734,8.03204275,1799.1,1798.5,0.7721]
[1745606232192,8.03204275,1799.1,1798.5,0.827696]
[1745606232363,11.66819141,1799.2,1798.6,1.48316486]
[1745606232547,6.10999999,1799.2,1798.7,0.8256]
[1745606233478,3.0,1799.0,1798.5,0.8256]
[1745606233677,5.55970796,1798.7,1798.5,0.8256]
[1745606234171,11.66940734,1798.8,1798.5,0.8256]
[1745606234350,5.5596708,1798.7,1798.5,0.8256]
[1745606234541,6.10999999,1798.8,1798.5,0.8256]
[1745606237450,5.55873227,1799.0,1798.5,0.8256]
[1745606237651,11.11707238,1799.1,1798.5,0.8256]
[1745606237850,5.55846335,1799.1,1798.5,0.8256]
[1745606238180,11.66817313,1799.2,1798.7,0.7637]
[1745606238847,5.55970205,1798.7,1798.4,0.7637]
[1745606239154,11.11956178,1798.7,1798.4,0.7637]
[1745606239359,6.75479823,1798.7,1798.4,0.7637]
[1745606239681,5.55990184,1798.6,1798.4,0.7637]
[1745606239869,6.75479823,1798.7,1798.4,0.7637]
[1745606240247,12.31465908,1798.7,1798.4,0.7637]
[1745606240447,6.75479823,1798.7,1798.4,0.7637]
[1745606241479,5.55989078,1798.6,1798.4,0.7637]
[1745606242876,6.75479823,1798.7,1798.4,0.7637]
[1745606243279,1.19509618,1798.7,1798.4,0.7637]
[1745606243445,6.7547287,1798.7,1798.4,0.7637]
[1745606243646,1.19509618,1798.7,1798.4,0.7637]
[1745606243843,6.39081605,1798.8,1798.4,0.7637]
[1745606244067,5.5595784,1798.7,1798.4,0.7637]
[1745606244242,6.39081605,1798.8,1798.4,0.7637]
[1745606244455,5.55957987,1798.7,1798.4,0.7637]
[1745606245166,5.55115439,1798.7,1798.4,0.7637]
[1745606245952,11.95033195,1798.8,1798.4,0.7637]
[1745606246171,3.0,1798.9,1798.5,0.8259]
[1745606246487,11.66841348,1799.1,1798.7,0.8259]
[1745606247243,5.55869225,1799.0,1798.7,0.8259]
[1745606247483,11.66841348,1799.1,1798.7,0.8259]
[1745606248045,17.22698129,1799.1,1798.7,0.8259]
[1745606248249,5.55875305,1799.0,1798.7,0.8259]
[1745606249150,5.55138325,1799.0,1798.7,0.8259]
[1745606250086,11.66841348,1799.1,1798.7,0.8259]
[1745606250691,6.10999999,1799.1,1798.7,0.8259]
[1745606252252,14.66789515,1799.3,1798.7,0.8259]
[1745606252491,20.22586468,1799.3,1798.7,0.8259]
[1745606252788,5.55814659,1799.2,1798.7,0.8259]
[1745606253493,11.66789515,1799.3,1798.7,0.8259]
[1745606253786,11.11659474,1799.2,1798.7,0.8259]
[1745606253989,5.55826348,1799.2,1798.7,0.8259]
[1745606254991,11.66787533,1799.3,1798.7,0.8259]
[1745606254992,6.10999999,1799.3,1798.7,0.8259]
[1745606255985,5.55754701,1799.4,1798.7,0.8259]
[1745606256284,20.22459935,1799.5,1798.9,0.7883]
[1745606256590,20.22460424,1799.5,1798.9,0.7883]
[1745606257169,5.55743449,1799.4,1798.9,0.7883]
[1745606257920,9.10999999,1799.5,1798.9,0.7883]
[1745606258210,9.10999999,1799.5,1799.1,0.8172]
[1745606258577,6.09865561,1799.5,1799.1,0.8172]
[1745606258777,8.26277254,1799.7,1799.1,0.8172]
[1745606259076,2.70624086,1799.7,1799.1,0.8172]
[1745606259403,8.26274403,1799.7,1799.1,0.8172]
[1745606260922,5.55695812,1799.6,1799.1,0.8172]
[1745606261423,5.55752477,1799.4,1799.1,0.8172]
[1745606261580,5.5575408,1799.4,1799.1,0.8172]
[1745606261783,5.55711153,1799.5,1799.1,0.8172]
[1745606262451,5.55697199,1799.6,1799.1,0.8172]
[1745606262655,15.10950531,1799.9,1799.5,0.7957]
[1745606262656,6.55354921,1799.9,1799.5,0.7957]
[1745606262926,0.4548936,1799.9,1799.5,0.85126245]
[1745606263080,0.4548936,1799.9,1799.5,0.7957]
[1745606263286,6.01088256,1799.9,1799.5,1.36397]
[1745606263499,5.55619386,1799.8,1799.5,1.36397]
[1745606263707,0.4548936,1799.9,1799.5,0.7957]
[1745606263936,6.01081758,1799.9,1799.5,0.7957]
[1745606264426,6.01092514,1799.9,1799.5,0.7957]
[1745606264625,5.55618673,1799.8,1799.5,0.7957]
[1745606264824,1.61155802,1799.9,1799.5,0.7957]
[1745606265130,0.4548936,1799.9,1799.5,0.7957]
[1745606265632,0.4548936,1799.9,1799.5,1.45326486]
[1745606265782,0.4548936,1799.9,1799.6,0.8302]
[1745606265987,6.01100792,1799.9,1799.6,0.8302]
[1745606266406,0.4548936,1799.9,1799.6,0.8302]
[1745606266790,6.01087038,1799.9,1799.6,0.8302]
[1745606266992,0.44773794,1799.9,1799.6,0.8302]
[1745606267220,6.00360639,1799.9,1799.6,0.8302]
[1745606268125,0.44773794,1799.9,1799.6,0.8302]
[1745606268789,6.60395346,1799.9,1799.6,0.8302]
[1745606269190,1.04808366,1799.9,1799.6,0.8302]
[1745606269392,0.44773794,1799.9,1799.6,0.8302]
[1745606273044,0.44773794,1799.9,1799.8,0.8253]
[1745606274034,0.44773794,1799.9,1799.6,0.8253]
[1745606274194,6.0036643,1799.9,1799.6,0.8253]
[1745606274395,0.44773794,1799.9,1799.6,0.8253]
[1745606274815,0.44773794,1799.9,1799.8,0.7821]
[1745606275416,5.5562101,1799.8,1799.5,0.7821]
[1745606275683,0.44773794,1799.9,1799.5,0.7821]
[1745606276211,0.44773794,1799.9,1799.5,1.43966486]
[1745606278695,6.00361074,1799.9,1799.5,1.43966486]